[Event "Championnat du monde jeunes U12F"]
[Date "2024.11.19"]
[White "Laurincova, Timea"]
[Black "Ivanova, Gabriela"]
[WhiteElo "1549"]
[BlackElo "1680"]
[Round "5.34"]
[Result "1/2-1/2"]
[TimeControl "5400+30"]

1. e4 {[%clk 1:30:57]} 1... c6 {[%clk 1:30:48]} 2. d4 {[%clk 1:31:21]} 2... d5
{[%clk 1:30:54]} 3. exd5 {[%clk 1:31:43]} 3... cxd5 {[%clk 1:31:03]} 4. Bd3
{[%clk 1:32:06]} 4... Nc6 {[%clk 1:29:58]} 5. c3 {[%clk 1:32:25]} 5... Nf6
{[%clk 1:29:02]} 6. h3 {[%clk 1:32:42]} 6... Bd7 {[%clk 1:24:27]} 7. Nf3 {[%clk
1:32:16]} 7... e6 {[%clk 1:09:48]} 8. O-O {[%clk 1:31:33]} 8... Rc8 {[%clk
1:08:10]} 9. Bg5 {[%clk 1:30:26]} 9... Be7 {[%clk 1:07:16]} 10. Nbd2 {[%clk
1:29:26]} 10... h6 {[%clk 1:06:22]} 11. Bh4 {[%clk 1:29:41]} 11... O-O {[%clk
1:03:40]} 12. Nb3 {[%clk 1:28:36]} 12... Re8 {[%clk 1:02:11]} 13. Re1 {[%clk
1:27:48]} 13... a6 {[%clk 0:56:31]} 14. a4 {[%clk 1:20:48]} 14... Bd6 {[%clk
0:46:03]} 15. Re2 {[%clk 1:15:04]} 15... e5 {[%clk 0:40:06]} 16. dxe5 {[%clk
1:11:34]} 16... Nxe5 {[%clk 0:38:03]} 17. Nbd4 {[%clk 1:09:46]} 17... g5 {[%clk
0:29:47]} 18. Bg3 {[%clk 1:09:36]} 18... Qc7 {[%clk 0:29:33]} 19. Nxe5 {[%clk
0:59:07]} 19... Bxe5 {[%clk 0:29:45]} 20. Bxe5 {[%clk 0:58:48]} 20... Rxe5
{[%clk 0:30:01]} 21. Rxe5 {[%clk 0:58:46]} 21... Qxe5 {[%clk 0:30:21]} 22. Qf3
{[%clk 0:57:59]} 22... g4 {[%clk 0:29:30]} 23. hxg4 {[%clk 0:49:50]} 23... Bxg4
{[%clk 0:29:24]} 24. Qe3 {[%clk 0:47:27]} 24... Qxe3 {[%clk 0:29:20]} 25. fxe3
{[%clk 0:47:51]} 25... Re8 {[%clk 0:29:28]} 26. Kf2 {[%clk 0:47:25]} 26... Bh5
{[%clk 0:28:54]} 27. Be2 {[%clk 0:45:22]} 27... Ng4+ {[%clk 0:23:50]} 28. Bxg4
{[%clk 0:45:13]} 28... Bxg4 {[%clk 0:24:08]} 29. Rh1 {[%clk 0:43:43]} 29... Kg7
{[%clk 0:23:42]} 30. Rh4 {[%clk 0:42:33]} 30... h5 {[%clk 0:22:22]} 31. Nc2
{[%clk 0:39:10]} 31... Re4 {[%clk 0:21:44]} 32. Nb4 {[%clk 0:38:37]} 32... a5
{[%clk 0:21:12]} 33. Nxd5 {[%clk 0:35:09]} 33... Rxa4 {[%clk 0:21:30]} 34. b4
{[%clk 0:33:35]} 34... axb4 {[%clk 0:21:26]} 35. cxb4 {[%clk 0:32:59]} 35...
Ra2+ {[%clk 0:20:21]} 36. Kg3 {[%clk 0:32:49]} 36... Re2 {[%clk 0:20:05]} 37.
Rh2 {[%clk 0:31:02]} 37... b5 {[%clk 0:19:17]} 38. Kf4 {[%clk 0:28:22]} 38...
Rf2+ {[%clk 0:18:29]} 39. Kg3 {[%clk 0:28:27]} 39... Rb2 {[%clk 0:18:32]} 40.
Rh4 {[%clk 0:26:45]} 1/2-1/2

[Variant "Standard"]
[Site "Europe Echecs"]

[Event "Championnat du monde jeunes U12F"]
[Date "2024.11.19"]
[White "Tsinjoviniavo, Aina Mahasambatra"]
[Black "Istratova, Nika"]
[WhiteElo "1716"]
[BlackElo "1473"]
[Round "5.35"]
[Result "1-0"]
[TimeControl "5400+30"]

1. e4 {[%clk 1:30:39]} 1... e5 {[%clk 1:30:54]} 2. Nf3 {[%clk 1:30:55]} 2... Nc6
{[%clk 1:31:14]} 3. d4 {[%clk 1:31:01]} 3... exd4 {[%clk 1:31:36]} 4. Nxd4
{[%clk 1:31:25]} 4... Bc5 {[%clk 1:31:50]} 5. Nb3 {[%clk 1:31:30]} 5... Bb6
{[%clk 1:31:54]} 6. Bc4 {[%clk 1:30:40]} 6... Qf6 {[%clk 1:31:03]} 7. O-O {[%clk
1:30:33]} 7... Nge7 {[%clk 1:28:34]} 8. Nc3 {[%clk 1:30:46]} 8... Ne5 {[%clk
1:27:41]} 9. Be2 {[%clk 1:30:00]} 9... O-O {[%clk 1:25:51]} 10. Na4 {[%clk
1:28:10]} 10... d6 {[%clk 1:24:01]} 11. Nxb6 {[%clk 1:28:27]} 11... axb6 {[%clk
1:24:03]} 12. Be3 {[%clk 1:28:18]} 12... Qg6 {[%clk 1:21:45]} 13. f3 {[%clk
1:24:28]} 13... Be6 {[%clk 1:15:14]} 14. Nd4 {[%clk 1:20:47]} 14... Bc4 {[%clk
1:10:16]} 15. b3 {[%clk 1:20:00]} 15... Bxe2 {[%clk 1:08:09]} 16. Qxe2 {[%clk
1:20:23]} 16... d5 {[%clk 1:00:47]} 17. Bf4 {[%clk 1:08:53]} 17... Qf6 {[%clk
0:52:48]} 18. Bg3 {[%clk 1:08:05]} 18... Rfe8 {[%clk 0:41:13]} 19. Nb5 {[%clk
1:06:35]} 19... Rac8 {[%clk 0:34:40]} 20. Rae1 {[%clk 1:02:43]} 20... dxe4
{[%clk 0:20:14]} 21. Qxe4 {[%clk 0:56:53]} 21... N7c6 {[%clk 0:12:47]} 22. Nxc7
{[%clk 0:55:00]} 22... Rxc7 {[%clk 0:11:57]} 23. f4 {[%clk 0:55:10]} 23... Rce7
{[%clk 0:09:04]} 24. fxe5 {[%clk 0:55:31]} 24... Qg6 {[%clk 0:05:58]} 25. Qc4
{[%clk 0:51:13]} 25... h6 {[%clk 0:04:04]} 26. c3 {[%clk 0:46:11]} 26... Nxe5
{[%clk 0:02:09]} 27. Bxe5 {[%clk 0:46:16]} 27... Rxe5 {[%clk 0:02:30]} 28. Rxe5
{[%clk 0:46:38]} 28... Rxe5 {[%clk 0:02:55]} 29. Qc8+ {[%clk 0:46:44]} 29... Kh7
{[%clk 0:03:18]} 30. Qxb7 {[%clk 0:47:00]} 30... Re2 {[%clk 0:01:49]} 31. Qf3
{[%clk 0:43:55]} 31... Rxa2 {[%clk 0:01:54]} 32. g3 {[%clk 0:43:59]} 32... Ra3
{[%clk 0:00:59]} 33. Qd1 {[%clk 0:41:07]} 33... Ra8 {[%clk 0:00:42]} 34. c4
{[%clk 0:40:26]} 34... Kg8 {[%clk 0:00:37]} 35. b4 {[%clk 0:40:23]} 35... Qc6
{[%clk 0:00:37]} 36. Rf4 {[%clk 0:36:17]} 36... Rc8 {[%clk 0:00:45]} 37. Qd4
{[%clk 0:35:42]} 37... Re8 {[%clk 0:00:37]} 38. c5 {[%clk 0:31:19]} 38... bxc5
{[%clk 0:00:49]} 39. bxc5 {[%clk 0:30:50]} 39... f6 {[%clk 0:00:36]} 40. Rf1
{[%clk 0:30:43]} 40... Qe6 {[%clk 0:00:38]} 41. Rc1 {[%clk 0:30:10]} 41... Qe3+
{[%clk 0:00:44]} 42. Qxe3 {[%clk 0:30:34]} 42... Rxe3 {[%clk 0:01:11]} 43. c6
{[%clk 0:30:19]} 43... Re8 {[%clk 0:01:27]} 44. c7 {[%clk 0:30:45]} 44... Rc8
{[%clk 0:01:52]} 45. Kf2 {[%clk 0:31:11]} 45... Kf7 {[%clk 0:02:13]} 46. Kf3
{[%clk 0:31:31]} 46... g6 {[%clk 0:01:25]} 47. Rc6 {[%clk 0:30:41]} 47... h5
{[%clk 0:00:50]} 48. h4 {[%clk 0:30:56]} 48... Ke7 {[%clk 0:00:42]} 49. Kf4
{[%clk 0:30:49]} 49... Kf7 {[%clk 0:00:46]} 50. Ke4 {[%clk 0:30:46]} 50... Ke7
{[%clk 0:00:35]} 51. Kd5 {[%clk 0:30:58]} 51... g5 {[%clk 0:00:37]} 52. Re6+
{[%clk 0:28:35]} 52... Kf7 {[%clk 0:00:43]} 53. hxg5 {[%clk 0:28:33]} 53... fxg5
{[%clk 0:00:55]} 54. Rh6 {[%clk 0:28:47]} 54... h4 {[%clk 0:00:37]} 55. g4
{[%clk 0:27:27]} 55... Kg7 {[%clk 0:00:43]} 56. Rc6 {[%clk 0:27:46]} 56... h3
{[%clk 0:00:41]} 57. Kd6 {[%clk 0:28:02]} 57... h2 {[%clk 0:00:41]} 58. Rc1
{[%clk 0:28:27]} 58... Rh8 {[%clk 0:00:35]} 59. Rh1 {[%clk 0:27:21]} 59... Rh4
{[%clk 0:00:34]} 60. c8=Q {[%clk 0:27:38]} 60... Rh6+ {[%clk 0:00:47]} 61. Ke7
{[%clk 0:27:54]} 61... Rf6 {[%clk 0:00:41]} 62. Qc3 {[%clk 0:27:59]} 62... Kg8
{[%clk 0:00:36]} 63. Qxf6 {[%clk 0:28:17]} 1-0

[Variant "Standard"]
[Site "Europe Echecs"]

[Event "Championnat du monde jeunes U12F"]
[Date "2024.11.19"]
[White "Messali Anger, Ilyana"]
[Black "Prokofieva, Alexandra"]
[WhiteElo "1687"]
[BlackElo "1467"]
[Round "5.36"]
[Result "1-0"]
[TimeControl "5400+30"]

1. e4 {[%clk 1:30:56]} 1... e5 {[%clk 1:30:47]} 2. Nf3 {[%clk 1:31:08]} 2... Nc6
{[%clk 1:31:00]} 3. Bb5 {[%clk 1:31:11]} 3... Nd4 {[%clk 1:31:08]} 4. Bc4 {[%clk
1:19:45]} 4... Nxf3+ {[%clk 1:31:13]} 5. Qxf3 {[%clk 1:19:41]} 5... Nf6 {[%clk
1:31:36]} 6. d3 {[%clk 1:17:04]} 6... g6 {[%clk 1:31:27]} 7. Bg5 {[%clk
1:15:18]} 7... Bg7 {[%clk 1:31:50]} 8. Nc3 {[%clk 1:14:44]} 8... c6 {[%clk
1:28:30]} 9. g4 {[%clk 1:06:06]} 9... d6 {[%clk 1:27:40]} 10. h3 {[%clk
1:01:03]} 10... Be6 {[%clk 1:26:42]} 11. O-O-O {[%clk 0:58:22]} 11... h6 {[%clk
1:26:32]} 12. Bh4 {[%clk 0:55:54]} 12... g5 {[%clk 1:26:28]} 13. Bg3 {[%clk
0:55:56]} 13... Qa5 {[%clk 1:19:03]} 14. Kb1 {[%clk 0:50:45]} 14... O-O-O {[%clk
1:17:26]} 15. Rhe1 {[%clk 0:45:18]} 15... h5 {[%clk 1:14:57]} 16. Bxe6+ {[%clk
0:43:05]} 16... fxe6 {[%clk 1:15:06]} 17. Qe3 {[%clk 0:41:43]} 17... hxg4 {[%clk
1:11:28]} 18. Qxg5 {[%clk 0:38:31]} 18... Rdg8 {[%clk 1:10:19]} 19. hxg4 {[%clk
0:36:48]} 19... Nd7 {[%clk 1:06:13]} 20. Qe3 {[%clk 0:34:33]} 20... d5 {[%clk
1:04:05]} 21. Ne2 {[%clk 0:29:36]} 21... d4 {[%clk 1:02:52]} 22. Qd2 {[%clk
0:28:39]} 22... Qb6 {[%clk 1:01:48]} 23. Nc1 {[%clk 0:27:00]} 23... Bf8 {[%clk
1:01:20]} 24. Qe2 {[%clk 0:26:14]} 24... Nc5 {[%clk 0:54:06]} 25. Bxe5 {[%clk
0:24:02]} 25... Rh7 {[%clk 0:52:51]} 26. Bxd4 {[%clk 0:20:57]} 26... Bg7 {[%clk
0:52:47]} 27. e5 {[%clk 0:18:45]} 27... Qa5 {[%clk 0:50:21]} 28. Nb3 {[%clk
0:16:23]} 28... Nxb3 {[%clk 0:50:38]} 29. axb3 {[%clk 0:16:32]} 29... Bf8 {[%clk
0:49:15]} 30. Rh1 {[%clk 0:15:20]} 30... Rhg7 {[%clk 0:48:53]} 31. f3 {[%clk
0:15:08]} 31... Bc5 {[%clk 0:47:47]} 32. Bxc5 {[%clk 0:15:06]} 32... Qxc5 {[%clk
0:48:08]} 33. d4 {[%clk 0:14:45]} 33... Qf8 {[%clk 0:47:43]} 34. Rdf1 {[%clk
0:13:54]} 34... Qf4 {[%clk 0:47:38]} 35. Qc4 {[%clk 0:13:27]} 35... Re8 {[%clk
0:46:31]} 36. Qc5 {[%clk 0:12:57]} 36... a6 {[%clk 0:46:02]} 37. Qa7 {[%clk
0:12:40]} 37... Rd8 {[%clk 0:45:24]} 38. c3 {[%clk 0:11:12]} 38... Qd2 {[%clk
0:43:22]} 39. Qc5 {[%clk 0:10:58]} 39... Qd3+ {[%clk 0:43:10]} 40. Ka2 {[%clk
0:09:12]} 40... Rgd7 {[%clk 0:43:13]} 41. Qc4 {[%clk 0:09:01]} 41... Qg6 {[%clk
0:43:14]} 42. b4 {[%clk 0:08:46]} 42... Rd5 {[%clk 0:42:41]} 43. Qb3 {[%clk
0:07:55]} 43... a5 {[%clk 0:42:15]} 44. Rf2 {[%clk 0:05:50]} 44... axb4 {[%clk
0:40:16]} 45. Qxb4 {[%clk 0:05:51]} 45... Rb5 {[%clk 0:39:24]} 46. Qa3 {[%clk
0:05:00]} 46... Qg7 {[%clk 0:30:15]} 47. Rfh2 {[%clk 0:04:37]} 47... Rb6 {[%clk
0:27:39]} 48. Rh7 {[%clk 0:04:13]} 48... Ra6 {[%clk 0:26:04]} 49. Qxa6 {[%clk
0:04:07]} 49... bxa6 {[%clk 0:25:52]} 50. Rxg7 {[%clk 0:04:26]} 50... Rf8 {[%clk
0:25:51]} 51. g5 {[%clk 0:04:47]} 51... Rxf3 {[%clk 0:26:06]} 52. Rh8+ {[%clk
0:05:06]} 52... Rf8 {[%clk 0:26:21]} 53. Rxf8# {[%clk 0:05:29]} 1-0

[Variant "Standard"]
[Site "Europe Echecs"]

[Event "Championnat du monde jeunes U12F"]
[Date "2024.11.19"]
[White "Liu, Jingyu"]
[Black "Liu, Lillian Yu-Ning"]
[WhiteElo "1680"]
[BlackElo "1456"]
[Round "5.37"]
[Result "1-0"]
[TimeControl "5400+30"]

1. d4 {[%clk 1:30:58]} 1... d5 {[%clk 1:30:52]} 2. c4 {[%clk 1:31:24]} 2... e6
{[%clk 1:31:06]} 3. Nc3 {[%clk 1:31:49]} 3... Nf6 {[%clk 1:31:21]} 4. cxd5
{[%clk 1:32:11]} 4... exd5 {[%clk 1:31:36]} 5. Bg5 {[%clk 1:32:35]} 5... Be7
{[%clk 1:31:44]} 6. e3 {[%clk 1:32:58]} 6... O-O {[%clk 1:32:00]} 7. Bd3 {[%clk
1:33:16]} 7... h6 {[%clk 1:31:25]} 8. Bh4 {[%clk 1:33:38]} 8... Be6 {[%clk
1:22:40]} 9. Nge2 {[%clk 1:33:53]} 9... Qd7 {[%clk 0:58:47]} 10. O-O {[%clk
1:26:58]} 10... Bf5 {[%clk 0:40:37]} 11. Bxf5 {[%clk 1:26:39]} 11... Qxf5 {[%clk
0:40:47]} 12. Bxf6 {[%clk 1:27:03]} 12... Bxf6 {[%clk 0:40:36]} 13. Qb3 {[%clk
1:27:26]} 13... Qc8 {[%clk 0:13:45]} 14. Nxd5 {[%clk 1:27:22]} 14... Bd8 {[%clk
0:05:44]} 15. Rac1 {[%clk 1:27:03]} 15... c6 {[%clk 0:03:15]} 16. Ndf4 {[%clk
1:27:06]} 16... Qd7 {[%clk 0:02:01]} 17. Rfd1 {[%clk 1:27:08]} 17... Bb6 {[%clk
0:01:59]} 18. d5 {[%clk 1:26:16]} 18... c5 {[%clk 0:01:46]} 19. Nd3 {[%clk
1:25:31]} 19... Qd6 {[%clk 0:01:39]} 20. Ng3 {[%clk 1:25:36]} 20... Rd8 {[%clk
0:01:30]} 21. Nxc5 {[%clk 1:25:14]} 21... Qe7 {[%clk 0:01:09]} 22. Na4 {[%clk
1:25:06]} 22... Qd6 {[%clk 0:01:22]} 23. Nxb6 {[%clk 1:25:06]} 23... axb6 {[%clk
0:01:38]} 24. e4 {[%clk 1:25:15]} 24... Na6 {[%clk 0:01:41]} 25. Nf5 {[%clk
1:25:05]} 25... Qe5 {[%clk 0:01:46]} 26. f3 {[%clk 1:24:37]} 26... Kh7 {[%clk
0:01:09]} 27. Qxb6 {[%clk 1:24:49]} 27... Rab8 {[%clk 0:01:18]} 28. Qd4 {[%clk
1:24:36]} 28... Qxd4+ {[%clk 0:01:32]} 29. Rxd4 {[%clk 1:24:44]} 29... g6 {[%clk
0:01:45]} 30. Ne3 {[%clk 1:25:06]} 30... Rd6 {[%clk 0:02:01]} 31. b4 {[%clk
1:21:32]} 31... Rbd8 {[%clk 0:02:10]} 32. b5 {[%clk 1:21:43]} 32... Nb8 {[%clk
0:02:17]} 33. Rc7 {[%clk 1:22:02]} 33... R6d7 {[%clk 0:02:30]} 34. Rxd7 {[%clk
1:22:17]} 34... Rxd7 {[%clk 0:02:45]} 35. Nc4 {[%clk 1:22:39]} 35... Kg7 {[%clk
0:02:33]} 36. e5 {[%clk 1:23:01]} 36... Kf8 {[%clk 0:02:43]} 37. Nb6 {[%clk
1:23:25]} 37... Rd8 {[%clk 0:03:00]} 38. d6 {[%clk 1:23:48]} 38... Nd7 {[%clk
0:03:15]} 39. Nxd7+ {[%clk 1:24:11]} 39... Rxd7 {[%clk 0:03:33]} 40. Ra4 {[%clk
1:24:23]} 40... Kg7 {[%clk 0:03:46]} 41. Rc4 {[%clk 1:24:35]} 41... Rd8 {[%clk
0:02:22]} 42. b6 {[%clk 1:24:41]} 42... f6 {[%clk 0:02:32]} 43. f4 {[%clk
1:24:51]} 43... fxe5 {[%clk 0:02:37]} 44. fxe5 {[%clk 1:25:13]} 44... Kf7 {[%clk
0:02:52]} 45. Rc7+ {[%clk 1:25:33]} 45... Ke6 {[%clk 0:03:12]} 46. Rxb7 {[%clk
1:25:46]} 46... Kxe5 {[%clk 0:03:31]} 47. d7 {[%clk 1:26:02]} 47... Ke6 {[%clk
0:03:46]} 48. Rc7 {[%clk 1:26:03]} 48... Rxd7 {[%clk 0:03:54]} 49. Rxd7 {[%clk
1:26:28]} 49... Kxd7 {[%clk 0:04:12]} 50. a4 {[%clk 1:26:54]} 50... Kc6 {[%clk
0:04:32]} 51. a5 {[%clk 1:27:21]} 1-0

[Variant "Standard"]
[Site "Europe Echecs"]

[Event "Championnat du monde jeunes U12F"]
[Date "2024.11.19"]
[White "Petrusic, Dusica"]
[Black "Chen, Pin-I"]
[WhiteElo "1498"]
[BlackElo "1601"]
[Round "5.38"]
[Result "1/2-1/2"]
[TimeControl "5400+30"]

1. e4 {[%clk 1:30:58]} 1... c6 {[%clk 1:30:50]} 2. d4 {[%clk 1:31:22]} 2... d5
{[%clk 1:31:14]} 3. Nd2 {[%clk 1:31:41]} 3... dxe4 {[%clk 1:31:35]} 4. Nxe4
{[%clk 1:32:02]} 4... Bf5 {[%clk 1:31:42]} 5. Ng3 {[%clk 1:32:20]} 5... Bg6
{[%clk 1:32:01]} 6. f4 {[%clk 1:32:24]} 6... h6 {[%clk 1:32:07]} 7. f5 {[%clk
1:31:41]} 7... Bh7 {[%clk 1:32:28]} 8. Nf3 {[%clk 1:31:36]} 8... Nd7 {[%clk
1:31:41]} 9. Bd3 {[%clk 1:30:30]} 9... Ngf6 {[%clk 1:30:56]} 10. O-O {[%clk
1:29:18]} 10... Qb6 {[%clk 1:21:31]} 11. Kh1 {[%clk 1:24:33]} 11... c5 {[%clk
1:20:14]} 12. c3 {[%clk 1:20:58]} 12... cxd4 {[%clk 1:11:54]} 13. Nxd4 {[%clk
1:20:33]} 13... Nc5 {[%clk 1:03:26]} 14. Bc2 {[%clk 1:17:35]} 14... g6 {[%clk
0:45:41]} 15. Qe2 {[%clk 1:07:31]} 15... Bg7 {[%clk 0:43:08]} 16. Qb5+ {[%clk
1:01:43]} 16... Qxb5 {[%clk 0:42:31]} 17. Nxb5 {[%clk 1:02:03]} 17... O-O {[%clk
0:38:41]} 18. Be3 {[%clk 1:00:18]} 18... b6 {[%clk 0:36:57]} 19. Rad1 {[%clk
0:56:48]} 19... a6 {[%clk 0:32:51]} 20. Bxc5 {[%clk 0:52:04]} 20... bxc5 {[%clk
0:32:12]} 21. Na3 {[%clk 0:48:05]} 21... Rfd8 {[%clk 0:28:16]} 22. Rfe1 {[%clk
0:42:57]} 22... Kf8 {[%clk 0:27:45]} 23. fxg6 {[%clk 0:41:10]} 23... Bxg6 {[%clk
0:28:05]} 24. Nf5 {[%clk 0:39:58]} 24... Bxf5 {[%clk 0:27:50]} 25. Bxf5 {[%clk
0:39:54]} 25... e6 {[%clk 0:26:32]} 26. Bc2 {[%clk 0:37:54]} 26... Ng4 {[%clk
0:25:12]} 27. Kg1 {[%clk 0:36:35]} 27... Ne5 {[%clk 0:23:29]} 28. Be4 {[%clk
0:33:14]} 28... Rab8 {[%clk 0:22:59]} 29. b3 {[%clk 0:32:38]} 29... Ke7 {[%clk
0:20:43]} 30. Nc2 {[%clk 0:29:33]} 1/2-1/2

[Variant "Standard"]
[Site "Europe Echecs"]

[Event "Championnat du monde jeunes U12F"]
[Date "2024.11.19"]
[White "Jung, Minju"]
[Black "Busuioc, Amelie"]
[WhiteElo "1457"]
[BlackElo "1581"]
[Round "5.39"]
[Result "0-1"]
[TimeControl "5400+30"]

1. e4 {[%clk 1:30:33]} 1... c5 {[%clk 1:30:52]} 2. Nf3 {[%clk 1:29:33]} 2... Nc6
{[%clk 1:31:14]} 3. Bb5 {[%clk 1:28:40]} 3... a6 {[%clk 1:31:05]} 4. Bxc6 {[%clk
1:26:53]} 4... bxc6 {[%clk 1:30:46]} 5. d3 {[%clk 1:22:24]} 5... e6 {[%clk
1:28:34]} 6. O-O {[%clk 1:18:45]} 6... Be7 {[%clk 1:27:36]} 7. Be3 {[%clk
1:11:35]} 7... d6 {[%clk 1:26:55]} 8. Nc3 {[%clk 1:05:50]} 8... e5 {[%clk
1:25:41]} 9. h3 {[%clk 1:02:41]} 9... Nf6 {[%clk 1:25:48]} 10. Re1 {[%clk
0:59:50]} 10... O-O {[%clk 1:24:54]} 11. Qd2 {[%clk 0:55:13]} 11... Bb7 {[%clk
1:23:34]} 12. Ne2 {[%clk 0:51:44]} 12... Qc7 {[%clk 1:22:01]} 13. Qc3 {[%clk
0:46:09]} 13... Nd7 {[%clk 1:18:13]} 14. Qb3 {[%clk 0:31:03]} 14... a5 {[%clk
1:14:40]} 15. a4 {[%clk 0:28:13]} 15... d5 {[%clk 1:13:39]} 16. Bg5 {[%clk
0:21:19]} 16... f6 {[%clk 1:06:02]} 17. Bh4 {[%clk 0:20:02]} 17... Qd6 {[%clk
1:00:19]} 18. Bg3 {[%clk 0:14:16]} 18... Rfb8 {[%clk 0:51:16]} 19. Nc3 {[%clk
0:09:58]} 19... Kh8 {[%clk 0:50:07]} 20. d4 {[%clk 0:07:22]} 20... Ba6 {[%clk
0:44:01]} 21. dxe5 {[%clk 0:06:31]} 21... fxe5 {[%clk 0:41:42]} 22. Qa2 {[%clk
0:06:22]} 22... Rb7 {[%clk 0:39:44]} 23. exd5 {[%clk 0:06:26]} 23... cxd5 {[%clk
0:37:53]} 24. Nxe5 {[%clk 0:04:48]} 24... Nxe5 {[%clk 0:31:51]} 25. Bxe5 {[%clk
0:05:15]} 25... Qg6 {[%clk 0:31:47]} 26. Nxd5 {[%clk 0:01:07]} 26... Rd7 {[%clk
0:29:02]} 27. Nxe7 {[%clk 0:00:45]} 27... Rxe7 {[%clk 0:28:47]} 28. Qd5 {[%clk
0:01:09]} 28... Bb7 {[%clk 0:28:07]} 29. Qxb7 Rxb7 {[%clk 0:28:22]} 30. Rad1
{[%clk 0:00:54]} 30... h6 {[%clk 0:28:03]} 31. Rd2 {[%clk 0:01:18]} 31... Re8
{[%clk 0:26:49]} 32. Rde2 {[%clk 0:01:21]} 32... Rbe7 {[%clk 0:26:37]} 33. Bd6
{[%clk 0:01:36]} 33... Rxe2 {[%clk 0:26:49]} 34. Rxe2 {[%clk 0:01:57]} 34...
Rxe2 {[%clk 0:27:13]} 35. Bxc5 {[%clk 0:02:22]} 35... Re1+ {[%clk 0:27:22]} 36.
Kh2 {[%clk 0:02:46]} 36... Qxc2 {[%clk 0:26:44]} 37. Be3 {[%clk 0:03:06]} 37...
Rxe3 {[%clk 0:26:53]} 38. fxe3 {[%clk 0:03:25]} 38... Qxb2 {[%clk 0:27:03]} 39.
Kg3 {[%clk 0:03:43]} 39... Qe5+ {[%clk 0:27:15]} 40. Kf3 {[%clk 0:04:05]} 40...
Qd5+ {[%clk 0:27:25]} 41. e4 {[%clk 0:04:19]} 41... Qc4 {[%clk 0:27:42]} 42. Kf4
{[%clk 0:04:42]} 42... Kg8 {[%clk 0:27:57]} 43. Ke5 {[%clk 0:05:07]} 43... Kf8
{[%clk 0:28:13]} 44. Kf5 {[%clk 0:05:19]} 44... Qxa4 {[%clk 0:28:00]} 45. e5
{[%clk 0:05:40]} 45... Qb5 {[%clk 0:28:01]} 46. Ke6 {[%clk 0:06:01]} 46... a4
{[%clk 0:28:13]} 47. Kd6 {[%clk 0:06:21]} 47... a3 {[%clk 0:28:09]} 48. e6
{[%clk 0:06:48]} 48... Ke8 {[%clk 0:28:27]} 49. e7 {[%clk 0:07:12]} 49... a2
{[%clk 0:28:52]} 50. g4 {[%clk 0:07:36]} 50... a1=R {[%clk 0:29:09]} 51. h4
{[%clk 0:07:49]} 51... Re1 52. g5 {[%clk 0:07:56]} 52... Qd3+ {[%clk 0:29:36]}
53. Kc5 {[%clk 0:08:17]} 53... Rc1+ {[%clk 0:29:48]} 54. Kb4 {[%clk 0:08:45]}
54... Qd6+ {[%clk 0:29:39]} 55. Kb5 {[%clk 0:09:07]} 55... Qb8+ {[%clk 0:29:33]}
56. Ka4 {[%clk 0:09:32]} 56... Ra1# 0-1

[Variant "Standard"]
[Site "Europe Echecs"]